[Event "9. Forchheimer Sparkassen Open 2010"]
[Site "Forchheim"]
[Date "2010.10.01"]
[Round "1.58"]
[White "Meier, Martin"]
[Black "Seidl, Josef"]
[Result "1-0"]
[ECO "E61"]
[WhiteElo "2400"]
[BlackElo "2400"]
[PlyCount "81"]
[EventDate "2010.??.??"]
[TimeControl "300"]

1. c4 c5 2. Nc3 g6 3. b3 Bg7 4. Bb2 Nf6 5. Qc2 O-O 6. e3 d6 7. Nf3 Nbd7 8. g3
Rb8 9. O-O-O a6 10. d4 b6 11. Be2 Bb7 12. d5 Qc7 13. h3 e5 14. Ng5 Rfe8 15. h4
Nf8 16. e4 Bc8 17. f3 Nh5 18. Rdg1 Bh6 19. f4 Nf6 20. Kb1 Bg4 21. Bxg4 Nxg4 22.
Bc1 Bg7 23. h5 f6 24. Rh4 fxg5 25. Rxg4 gxf4 26. hxg6 Nxg6 27. gxf4 exf4 28.
Qd3 Bxc3 29. Qxc3 Qg7 30. e5 dxe5 31. Qd3 e4 32. Qc2 Qd4 33. Rd1 Qg7 34. Bxf4
e3 35. Bxb8 Rxb8 36. Re4 Qh6 37. d6 Rd8 38. d7 Qh3 39. Re8+ Rxe8 40. dxe8=Q+
Nf8 41. Rg1+ 1-0